bitfinex/quotes_BTCUSD_20240905
["timestamp","ask_amount","ask_price","bid_price","bid_amount"]
[1725503407959,0.704417,57985.0,57984.0,0.27362667]
[1725503408190,0.727417,57985.0,57984.0,0.02352846]
[1725503408413,0.968858,57985.0,57984.0,0.02352846]
[1725503410110,0.99590336,57985.0,57984.0,0.02352846]
[1725503410331,0.968858,57985.0,57984.0,0.02352846]
[1725503410543,1.52850529,57985.0,57984.0,0.02152846]
[1725503410832,1.52850529,57985.0,57984.0,0.01952846]
[1725503411046,1.53050529,57985.0,57984.0,0.01952846]
[1725503411266,1.5432635,57985.0,57984.0,0.01952846]
[1725503411696,1.5412635,57985.0,57984.0,0.01952846]
[1725503411910,1.49467544,57985.0,57984.0,0.01952846]
[1725503412122,1.08711621,57985.0,57984.0,0.02052846]
[1725503412570,1.07811621,57985.0,57984.0,0.01952846]
[1725503412791,1.08511621,57985.0,57984.0,0.02052846]
[1725503413218,1.09511621,57985.0,57984.0,0.02152846]
[1725503413429,1.08511621,57985.0,57984.0,0.02052846]
[1725503413899,1.09211621,57985.0,57984.0,0.02152846]
[1725503414108,1.08311621,57985.0,57984.0,0.02052846]
[1725503414321,1.08811621,57985.0,57984.0,0.02052846]
[1725503414541,1.09111621,57985.0,57984.0,0.02052846]
[1725503414750,0.99461621,57985.0,57984.0,0.02052846]
[1725503414971,0.99161621,57985.0,57984.0,0.02052846]
[1725503415180,0.99661621,57985.0,57984.0,0.02052846]
[1725503415609,0.98461621,57985.0,57984.0,0.01952846]
[1725503415824,0.97961621,57985.0,57984.0,0.01952846]
[1725503416041,0.98561621,57985.0,57984.0,0.01952846]
[1725503417999,0.84261825,57985.0,57984.0,0.01952846]
[1725503418209,0.96333825,57985.0,57984.0,0.01952846]
[1725503421211,0.96333825,57985.0,57984.0,0.03134131]
[1725503422504,0.96033825,57985.0,57984.0,0.03134131]
[1725503422709,0.96233825,57985.0,57984.0,0.03134131]
[1725503422920,0.95933825,57985.0,57984.0,0.03134131]
[1725503423129,0.96133825,57985.0,57984.0,0.03134131]
[1725503424492,0.96133825,57985.0,57984.0,0.01952846]
[1725503425356,0.93501129,57985.0,57984.0,0.01952846]
[1725503428120,0.69357029,57985.0,57984.0,0.01952846]
[1725503428349,0.42912929,57985.0,57984.0,0.01952846]
[1725503429749,0.42912929,57985.0,57984.0,0.02115846]
[1725503430026,0.42912929,57985.0,57984.0,0.04545431]
[1725503430255,0.42994429,57985.0,57984.0,0.04545431]
[1725503430975,0.42994429,57985.0,57984.0,0.02115846]
[1725503430976,0.67138529,57985.0,57984.0,0.02115846]
[1725503431219,0.69438529,57985.0,57984.0,0.02115846]
[1725503431465,0.93582629,57985.0,57984.0,0.02115846]
[1725503436427,1.9343924,57985.0,57984.0,0.02115846]
[1725503436653,1.98298046,57985.0,57984.0,0.02115846]
[1725503437115,2.02769869,57985.0,57984.0,0.02115846]
[1725503437334,1.51617358,57985.0,57984.0,0.02115846]
[1725503437780,1.51217358,57985.0,57984.0,0.02115846]
[1725503438209,1.51217358,57985.0,57984.0,0.02315846]
[1725503438432,1.53317358,57985.0,57984.0,0.02315846]
[1725503438648,1.53517358,57985.0,57984.0,0.02315846]
[1725503442058,1.56222312,57985.0,57984.0,0.02315846]
[1725503442935,1.53517358,57985.0,57984.0,0.02315846]
[1725503443365,1.53317358,57985.0,57984.0,0.02315846]
[1725503445356,1.31046729,57985.0,57984.0,0.02315846]
[1725503445845,1.34751668,57985.0,57984.0,0.02315846]
[1725503446261,1.33751668,57985.0,57984.0,0.02315846]
[1725503446474,1.32751668,57985.0,57984.0,0.02315846]
[1725503447134,1.33751668,57985.0,57984.0,0.02315846]
[1725503447573,1.34751668,57985.0,57984.0,0.02315846]
[1725503448259,1.33751668,57985.0,57984.0,0.02315846]
[1725503448493,1.32751668,57985.0,57984.0,0.02315846]
[1725503448920,1.23131668,57985.0,57984.0,0.02315846]
[1725503450323,1.20426729,57985.0,57984.0,0.02315846]
[1725503452114,1.30856729,57985.0,57984.0,0.02315846]
[1725503452593,1.35528552,57985.0,57984.0,0.02315846]
[1725503453717,1.382335,57985.0,57984.0,0.02315846]
[1725503454857,1.33561677,57985.0,57984.0,0.02315846]
[1725503455291,1.23131677,57985.0,57984.0,0.02315846]
[1725503455921,1.23131677,57985.0,57984.0,0.03566431]
[1725503456208,1.23131677,57985.0,57984.0,0.02315846]
[1725503459124,1.18511054,57985.0,57984.0,0.02315846]
[1725503461113,1.25429054,57985.0,57984.0,0.02315846]
[1725503461592,1.2653316,57985.0,57984.0,0.02315846]
[1725503462004,1.37332395,57985.0,57984.0,0.02315846]
[1725503465183,1.37332395,57985.0,57984.0,0.03869431]
[1725503465381,1.37332395,57985.0,57984.0,0.25855846]
[1725503465382,0.73268754,57985.0,57984.0,0.25855846]
[1725503465853,0.70563806,57985.0,57984.0,0.25855846]
[1725503466298,0.63645806,57985.0,57984.0,0.25855846]
[1725503467160,0.61545806,57985.0,57984.0,0.25655846]
[1725503467372,0.642504,57985.0,57984.0,0.28221431]
[1725503467599,0.742504,57985.0,57984.0,0.28221431]
[1725503468299,0.742504,57985.0,57984.0,0.28421431]
[1725503469226,0.742504,57985.0,57984.0,0.28621431]
[1725503470104,1.01236288,57985.0,57984.0,0.28621431]
[1725503475890,1.25380388,57985.0,57984.0,0.02515846]
[1725503476108,1.61155117,57985.0,57984.0,0.02515846]
[1725503476320,1.61155117,57985.0,57984.0,0.00563]
[1725503476321,1.71265117,57985.0,57984.0,0.00563]
[1725503476527,1.72265117,57985.0,57984.0,0.00563]
[1725503476731,1.72265117,57985.0,57984.0,0.00363]
[1725503476940,1.72265117,57985.0,57984.0,0.00163]
[1725503477168,1.72265117,57985.0,57984.0,0.00363]
[1725503477169,1.74565117,57985.0,57984.0,0.00363]
[1725503477571,1.73365117,57985.0,57984.0,0.00263]
[1725503477984,1.74365117,57985.0,57984.0,0.00363]
[1725503478996,1.73265117,57985.0,57984.0,0.00263]
[1725503479207,1.74565117,57985.0,57984.0,0.00363]
[1725503481081,1.74365117,57985.0,57984.0,0.00363]
[1725503481516,1.69693294,57985.0,57984.0,0.00363]
[1725503481726,1.53924488,57985.0,57984.0,0.00363]
[1725503481930,1.53924488,57985.0,57984.0,0.026913]
[1725503482759,1.53924488,57985.0,57984.0,0.00363]
[1725503483373,1.28887387,57985.0,57984.0,0.00363]
[1725503484262,0.65457399,57985.0,57984.0,0.22283]
[1725503485613,0.67757399,57985.0,57984.0,0.22283]
[1725503486248,0.67757399,57985.0,57984.0,0.245113]
[1725503486472,0.77757399,57985.0,57984.0,0.245113]
[1725503489939,0.53613299,57985.0,57984.0,0.245113]
[1725503490155,0.51313299,57985.0,57984.0,0.245113]
[1725503490356,0.51313299,57985.0,57984.0,0.26464146]
[1725503491618,0.50213299,57985.0,57984.0,0.26364146]
[1725503491844,0.49213299,57985.0,57984.0,0.26264146]
[1725503492061,0.49413299,57985.0,57984.0,0.26264146]
[1725503492269,0.49613299,57985.0,57984.0,0.26264146]
[1725503495346,0.49694899,57985.0,57984.0,0.26264146]
[1725503496756,0.142903,57985.0,57984.0,0.26264146]
[1725503496963,0.03186194,57985.0,57984.0,0.62480846]
[1725503497197,0.03186194,57985.0,57984.0,0.86625346]
[1725503497419,0.004816,57985.0,57984.0,0.62480846]
[1725503497637,0.004816,57985.0,57984.0,0.26264146]
[1725503497841,0.71235561,57985.0,57984.0,0.24035846]
[1725503498065,1.11575516,57985.0,57984.0,0.02115846]
[1725503498275,1.11575516,57985.0,57984.0,0.02315846]
[1725503498276,1.20788116,57985.0,57984.0,0.02315846]
[1725503498508,1.61018422,57985.0,57984.0,0.00363]
[1725503498716,1.64395997,57985.0,57984.0,0.00363]
[1725503498920,1.67019295,57985.0,57984.0,0.00163]
[1725503499123,1.67019295,57985.0,57984.0,0.00263]
[1725503499124,1.62360489,57985.0,57984.0,0.00263]
[1725503499835,1.62360489,57985.0,57984.0,0.00163]
[1725503501143,1.62460489,57985.0,57984.0,0.00163]
[1725503502173,1.27676389,57985.0,57984.0,0.00163]
[1725503502590,1.27676389,57985.0,57984.0,0.012303]
[1725503504225,1.27576389,57985.0,57984.0,0.012303]
[1725503504610,1.27676389,57985.0,57984.0,0.012303]
[1725503508769,1.27757989,57985.0,57984.0,0.012303]
[1725503508979,1.27757989,57985.0,57984.0,0.144003]
[1725503510983,1.03613889,57985.0,57984.0,0.144003]
[1725503511585,1.03613889,57985.0,57984.0,0.16353146]
[1725503511793,1.03513889,57985.0,57984.0,0.16353146]
[1725503511995,1.03513889,57985.0,57984.0,0.144003]
[1725503512146,1.03513889,57985.0,57984.0,0.145003]
[1725503512981,1.03513889,57985.0,57984.0,0.146003]
[1725503516566,0.13864073,57985.0,57984.0,0.249403]
[1725503516777,0.25936073,57985.0,57984.0,0.249403]
[1725503516968,0.15936073,57985.0,57984.0,0.26893146]
[1725503517182,0.50080173,57985.0,57984.0,0.26893146]
[1725503517417,0.74224273,57985.0,57984.0,0.26893146]
[1725503517632,0.74224273,57985.0,57984.0,0.25825846]
[1725503518481,0.50080173,57985.0,57984.0,0.25825846]
[1725503520256,0.25936073,57985.0,57984.0,0.25825846]
[1725503520502,0.24858498,57985.0,57984.0,0.25825846]
[1725503520763,0.24858498,57985.0,57984.0,0.29615711]
[1725503521287,0.12786498,57985.0,57984.0,0.29615711]
[1725503521527,0.12786498,57985.0,57984.0,0.65832411]
[1725503521528,0.02786498,57985.0,57984.0,0.65832411]
[1725503521774,0.02786498,57985.0,57984.0,0.63879565]
[1725503521775,0.000816,57985.0,57984.0,0.63879565]
[1725503521999,0.000816,57985.0,57984.0,0.65832411]
[1725503522320,0.000816,57985.0,57984.0,0.89976911]
[1725503522563,0.000816,57985.0,57984.0,1.38615896]
[1725503523017,0.000816,57985.0,57984.0,1.52413354]
[1725503523255,0.000816,57985.0,57984.0,1.28168854]
[1725503523511,0.001816,57985.0,57984.0,0.74187647]
[1725503523744,0.001816,57985.0,57984.0,0.30215711]
[1725503523987,0.001816,57985.0,57984.0,0.29515711]
[1725503523988,0.000816,57985.0,57984.0,0.29515711]
[1725503524214,0.362977,57985.0,57984.0,0.25625846]
[1725503524442,0.605418,57985.0,57984.0,0.26725846]
[1725503524686,0.364977,57985.0,57984.0,0.27525846]
[1725503524895,0.363977,57985.0,57984.0,0.26725846]
[1725503525117,0.363977,57985.0,57984.0,0.29478431]
[1725503525318,0.364977,57985.0,57984.0,0.30678431]
[1725503525555,0.122536,57985.0,57984.0,0.29478431]
[1725503525765,0.122536,57985.0,57984.0,0.29678431]
[1725503525925,0.001816,57985.0,57984.0,0.29678431]
[1725503526158,0.000816,57985.0,57984.0,0.28378431]
[1725503526577,0.000816,57985.0,57984.0,0.40450631]
[1725503526782,0.000816,57985.0,57984.0,0.69765543]
[1725503526927,0.000816,57985.0,57984.0,0.64595131]
[1725503527328,0.000816,57985.0,57984.0,0.70266696]
[1725503527588,0.000816,57985.0,57984.0,0.69766696]
[1725503527938,0.001816,57985.0,57984.0,0.65795131]
[1725503528365,0.001816,57985.0,57984.0,0.71366696]
[1725503529263,0.001816,57985.0,57984.0,0.66195131]
[1725503529487,0.001816,57985.0,57984.0,0.35149996]
[1725503529774,0.001816,57985.0,57984.0,0.41650631]
[1725503529985,0.002816,57985.0,57984.0,0.42850631]
[1725503530209,0.002816,57985.0,57984.0,0.30778431]
[1725503531820,0.002816,57985.0,57984.0,0.42850631]
[1725503532293,0.002816,57985.0,57984.0,0.30778431]
[1725503532510,0.002816,57985.0,57984.0,0.42850631]
[1725503532773,0.002816,57985.0,57984.0,0.66995131]
[1725503532986,0.002816,57985.0,57984.0,0.72166148]
[1725503533410,0.002816,57985.0,57984.0,0.42850631]
[1725503534094,0.002816,57985.0,57984.0,0.66995131]
[1725503534315,0.002816,57985.0,57984.0,0.96310648]
[1725503534561,0.002816,57985.0,57984.0,1.62530973]
[1725503534775,0.002816,57985.0,57984.0,1.567834]
[1725503535023,0.002816,57985.0,57984.0,1.809279]
[1725503535716,0.000815,57990.0,57989.0,1.34688316]
[1725503535952,0.000815,57990.0,57989.0,2.01493541]
[1725503536196,0.000815,57990.0,57989.0,2.01435119]
[1725503536412,0.000815,57990.0,57989.0,1.91526763]
[1725503536650,0.000815,57990.0,57989.0,1.91726763]
[1725503537092,0.000815,57990.0,57989.0,1.91717855]
[1725503537379,0.000815,57990.0,57989.0,2.15860355]
[1725503537597,0.000815,57990.0,57989.0,2.17260355]
[1725503537842,0.000815,57990.0,57989.0,2.18660355]
[1725503538080,0.000815,57990.0,57989.0,2.17260355]
[1725503538331,0.00082,58001.0,57997.0,1.078068]
[1725503538541,2.9,58000.0,57997.0,1.73077824]
[1725503538743,2.9,58000.0,57997.0,1.82762965]
[1725503538948,2.9,58000.0,57997.0,1.44481557]
[1725503539170,2.9,58000.0,57997.0,1.41902278]
[1725503539414,2.9,58000.0,57997.0,1.52859078]
[1725503540077,2.9,58000.0,57997.0,1.54259078]
[1725503540298,2.9,58000.0,57997.0,1.55659078]
[1725503540504,2.63993533,58000.0,57999.0,0.823657]
[1725503540913,2.63993533,58000.0,57999.0,0.84311603]
[1725503541156,2.63993533,58000.0,57999.0,0.99767218]
[1725503541364,2.63993533,58000.0,57999.0,1.23905518]
[1725503541562,2.63993533,58000.0,57999.0,0.99767218]
[1725503541989,2.63993533,58000.0,57999.0,1.01167218]
[1725503543112,2.42685927,58000.0,57999.0,1.02567218]
[1725503544968,2.42767527,58000.0,57999.0,1.02567218]
[1725503545206,2.42767527,58000.0,57999.0,0.54290618]
[1725503546047,2.42767527,58000.0,57999.0,0.78428918]
[1725503546688,2.42767527,58000.0,57999.0,0.75628918]
[1725503546896,2.42767527,58000.0,57999.0,0.76028918]
[1725503547120,2.42767527,58000.0,57999.0,0.77028918]
[1725503547562,2.42767527,58000.0,57999.0,0.76628918]
[1725503547766,2.42767527,58000.0,57999.0,0.77628918]
[1725503549844,2.42767527,58000.0,57999.0,1.01767218]
[1725503559053,2.42767527,58000.0,57999.0,1.01930218]
[1725503561851,2.42767527,58000.0,57999.0,0.77791918]
[1725503562270,2.42767527,58000.0,57999.0,1.01930218]
[1725503563869,2.42767527,58000.0,57999.0,0.77791918]
[1725503564106,3.25222227,58000.0,57999.0,0.04108903]
[1725503564308,3.88649743,58000.0,57999.0,0.04108903]
[1725503564529,3.88649743,58000.0,57999.0,0.02163]
[1725503565419,4.22016683,58000.0,57999.0,0.02163]
[1725503565648,3.94625924,58000.0,57999.0,0.01163]
[1725503565833,3.89967118,58000.0,57999.0,0.00163]
[1725503566066,3.89967118,58000.0,57999.0,0.00463]
[1725503566272,3.89967118,58000.0,57999.0,0.00363]
[1725503566697,3.90367118,58000.0,57999.0,0.00263]
[1725503566905,3.93571315,58000.0,57999.0,0.00363]
[1725503568841,3.94571315,58000.0,57999.0,0.00363]
[1725503569049,4.18709215,58000.0,57999.0,0.00363]
[1725503569254,4.18909215,58000.0,57999.0,0.00363]
[1725503569457,4.17809215,58000.0,57999.0,0.00163]
[1725503569871,4.18709215,58000.0,57999.0,0.00363]
[1725503570078,4.17709215,58000.0,57999.0,0.00263]
[1725503570306,4.17209215,58000.0,57999.0,0.00263]
[1725503570511,4.18109215,58000.0,57999.0,0.00363]
[1725503570718,4.17709215,58000.0,57999.0,0.00263]
[1725503570927,4.18709215,58000.0,57999.0,0.00263]
[1725503571702,4.18209215,58000.0,57999.0,0.00163]
[1725503571906,4.19609215,58000.0,57999.0,0.00263]
[1725503572108,4.20909215,58000.0,57999.0,0.00363]
[1725503572561,4.17809215,58000.0,57999.0,0.00163]
[1725503572892,1.76223288,58000.0,57999.0,0.00263]
[1725503573206,1.77423288,58000.0,57999.0,0.00363]
[1725503573409,1.76323288,58000.0,57999.0,0.00263]
[1725503573819,1.76323288,58000.0,57999.0,0.00163]
[1725503575023,1.75123288,58000.0,57999.0,0.00163]
[1725503575228,1.77623288,58000.0,57999.0,0.00363]
[1725503575428,1.76223288,58000.0,57999.0,0.00263]
[1725503575843,1.77423288,58000.0,57999.0,0.00363]
[1725503576044,1.77423288,58000.0,57999.0,0.00163]
[1725503576045,1.75123288,58000.0,57999.0,0.00163]
[1725503576254,1.76323288,58000.0,57999.0,0.00263]
[1725503576468,1.77623288,58000.0,57999.0,0.00363]
[1725503576670,1.76323288,58000.0,57999.0,0.00263]
[1725503576877,1.75123288,58000.0,57999.0,0.00163]
[1725503577099,1.75323288,58000.0,57999.0,0.00263]
[1725503577436,1.76323288,58000.0,57999.0,0.00263]
[1725503578354,1.76323288,58000.0,57999.0,0.00363]
[1725503578355,1.77423288,58000.0,57999.0,0.00363]
[1725503579907,1.53285388,58000.0,57999.0,0.00363]
[1725503580649,1.77423288,58000.0,57999.0,0.00363]
[1725503581324,1.40495388,58000.0,57999.0,0.00363]
[1725503581541,1.16275888,58000.0,57999.0,0.00363]
[1725503581723,1.81420494,58000.0,57999.0,0.00363]
[1725503581925,1.57282594,58000.0,57999.0,0.00363]
[1725503582377,1.81620494,58000.0,57999.0,0.00363]
[1725503582581,1.81420494,58000.0,57999.0,0.00363]
[1725503583242,1.82620494,58000.0,57999.0,0.00363]
[1725503583450,1.82620494,58000.0,57985.0,0.001632]
[1725503583451,0.943629,57986.0,57985.0,0.001632]
[1725503583776,1.21352516,57986.0,57985.0,0.001632]
[1725503583983,1.33652516,57986.0,57985.0,0.001632]
[1725503584161,1.23792516,57986.0,57985.0,0.001632]
[1725503584716,1.23792516,57986.0,57985.0,0.010632]
[1725503585750,1.23792516,57986.0,57985.0,0.005632]
[1725503586533,1.23892516,57986.0,57985.0,0.001632]
[1725503586728,1.24092516,57986.0,57985.0,0.001632]
[1725503587174,1.25433991,57986.0,57985.0,0.001632]
[1725503587588,0.26013275,57986.0,57985.0,0.224332]
[1725503587811,0.47756975,57986.0,57985.0,0.26645203]
[1725503588480,0.47856975,57986.0,57985.0,0.26645203]
[1725503588975,0.23713275,57986.0,57985.0,0.26645203]
[1725503589206,0.47856975,57986.0,57985.0,0.26645203]
[1725503589713,0.103,57986.0,57985.0,0.26645203]
[1725503589925,0.003,57986.0,57985.0,0.26645203]
[1725503590099,0.223718,57986.0,57985.0,0.26645203]
[1725503590575,0.463155,57986.0,57985.0,0.26645203]
[1725503591003,0.704592,57986.0,57985.0,0.27045203]
[1725503591195,0.727592,57986.0,57985.0,0.27045203]
[1725503591621,0.726592,57986.0,57985.0,0.27045203]
[1725503591997,0.726592,57986.0,57985.0,0.2559282]
[1725503594522,0.726592,57986.0,57985.0,0.1577282]
[1725503596173,0.726592,57986.0,57985.0,0.0332282]
[1725503596374,0.726592,57986.0,57985.0,0.010632]
[1725503606110,0.83454279,57986.0,57985.0,0.010632]
[1725503606476,1.07597979,57986.0,57985.0,0.010632]
[1725503607214,1.07597979,57986.0,57985.0,0.001632]
[1725503607410,1.07597979,57986.0,57985.0,0.002632]
[1725503607614,1.07597979,57986.0,57985.0,0.003632]
[1725503607835,1.07597979,57986.0,57985.0,0.0129682]
[1725503608040,1.07597979,57986.0,57985.0,0.0119682]
[1725503608262,1.07597979,57986.0,57985.0,0.0129682]
[1725503608433,1.07597979,57986.0,57985.0,0.0139682]
[1725503609252,0.1,57986.0,57985.0,0.2414682]
[1725503609572,0.1,57986.0,57985.0,0.26099203]
[1725503609573,0.120718,57986.0,57985.0,0.26099203]
[1725503609731,0.120718,57986.0,57985.0,0.31259841]
[1725503609732,0.220718,57986.0,57985.0,0.31259841]
[1725503610342,0.220718,57986.0,57985.0,0.26099203]
[1725503610587,0.220718,57986.0,57985.0,0.31277072]
[1725503610588,0.1,57986.0,57985.0,0.31277072]
[1725503610795,0.120717,57987.0,57985.0,0.26099203]
[1725503611006,0.36215,57987.0,57986.0,0.05639704]
[1725503611166,0.46215,57987.0,57986.0,0.07591624]
[1725503611997,0.1,57987.0,57986.0,0.07591624]
[1725503612208,0.220716,57987.0,57986.0,0.07591624]
[1725503613233,0.462149,57987.0,57986.0,0.07591624]
[1725503613632,0.14881434,57987.0,57986.0,0.07591624]
[1725503614117,0.14881434,57987.0,57986.0,0.07991624]
[1725503614842,0.14881434,57987.0,57986.0,0.08491624]
[1725503615648,0.24881434,57987.0,57986.0,0.08491624]
[1725503616868,0.1,57987.0,57986.0,0.44203424]
[1725503617181,0.120707,57992.0,57989.0,0.1046]
[1725503617295,0.1,57991.0,57990.0,0.07352566]
[1725503617749,0.1,57991.0,57990.0,0.09302635]
[1725503617921,0.25516206,57994.0,57990.0,0.09302635]
[1725503617922,0.120706,57992.0,57990.0,0.09302635]
[1725503618127,0.1,57991.0,57990.0,0.09302635]
[1725503618538,0.220708,57991.0,57990.0,0.09302635]
[1725503619532,0.220708,57991.0,57990.0,0.31792635]
[1725503620161,0.1,57991.0,57990.0,0.31792635]
[1725503620361,0.120705,57993.0,57990.0,0.31792635]
[1725503620539,0.1,57992.0,57991.0,0.07318608]
[1725503620785,0.1,57992.0,57991.0,0.09268214]
[1725503620993,0.220706,57992.0,57991.0,0.09268214]
[1725503621196,0.70353,57992.0,57991.0,0.01949606]
[1725503621395,0.462118,57992.0,57991.0,0.01949606]
[1725503621794,0.4753555,57992.0,57991.0,0.01949606]
[1725503624170,0.462118,57992.0,57991.0,0.01949606]
[1725503624371,0.462118,57992.0,57991.0,0.05688154]
[1725503630644,0.70353,57992.0,57991.0,0.05688154]
[1725503633743,0.462118,57992.0,57991.0,0.05688154]
[1725503639299,0.220706,57992.0,57991.0,0.05688154]
[1725503639577,0.1,57992.0,57991.0,0.10866897]
[1725503639791,0.1,57992.0,57991.0,0.21286897]
[1725503640718,0.220706,57992.0,57991.0,0.21286897]
[1725503641162,0.1,57992.0,57991.0,0.21286216]
[1725503641318,0.120705,57993.0,57991.0,0.21286216]
[1725503641474,0.220706,57992.0,57991.0,0.21286216]
[1725503641883,0.220706,57992.0,57991.0,0.16108154]
[1725503642091,0.462118,57992.0,57991.0,0.16108154]
[1725503643799,0.1,57992.0,57991.0,0.16108154]
[1725503644001,0.120706,57992.0,57991.0,0.16108154]
[1725503644206,0.220706,57992.0,57991.0,0.16108154]
[1725503646660,0.221521,57992.0,57991.0,0.16108154]
[1725503647098,0.221521,57992.0,57991.0,0.21286216]
[1725503647298,0.221521,57992.0,57991.0,0.16108154]
[1725503647472,0.221521,57992.0,57991.0,0.21286216]
[1725503647672,0.221521,57992.0,57991.0,0.16108154]
[1725503648216,0.221521,57992.0,57991.0,0.21286984]
[1725503648417,0.221521,57992.0,57991.0,0.21986984]
[1725503648575,0.463933,57992.0,57991.0,0.16808154]
[1725503648785,0.222521,57992.0,57991.0,0.16808154]
[1725503649137,0.463933,57992.0,57991.0,0.16808154]
[1725503649719,0.464933,57992.0,57991.0,0.17508154]
[1725503653295,0.19435685,57992.0,57991.0,0.17508154]
[1725503654265,0.31506285,57992.0,57991.0,0.17508154]
[1725503655467,0.41506285,57992.0,57991.0,0.17508154]
[1725503657253,0.94581446,57992.0,57991.0,0.03349606]
[1725503657477,1.02258685,57992.0,57991.0,0.014]
[1725503658016,0.948936,57992.0,57991.0,0.014]
[1725503658230,1.069642,57992.0,57991.0,0.007]
[1725503658627,1.076642,57992.0,57991.0,0.008]
[1725503658920,1.076642,57992.0,57991.0,0.001]
[1725503659120,0.603572,57988.0,57987.0,0.00163]
[1725503659584,0.603572,57988.0,57987.0,0.02114457]
[1725503659765,0.603572,57988.0,57987.0,0.00163]
[1725503659966,0.603572,57988.0,57987.0,0.02114457]
[1725503660184,0.603572,57988.0,57987.0,0.00163]
[1725503660368,0.604572,57988.0,57987.0,0.02114457]
[1725503660508,0.604572,57988.0,57987.0,0.00163]
[1725503660714,0.604572,57988.0,57987.0,0.02114457]
[1725503660922,0.604572,57988.0,57987.0,0.00163]
[1725503661123,0.604572,57988.0,57987.0,0.02114457]
[1725503661371,0.846001,57988.0,57987.0,0.00163]
[1725503661573,1.44743,57988.0,57987.0,0.02114457]
[1725503661724,1.44743,57988.0,57987.0,0.00163]
[1725503661725,1.5689898,57988.0,57987.0,0.00163]
[1725503661935,1.52206219,57988.0,57987.0,0.00163]
[1725503662461,1.52106219,57988.0,57987.0,0.00163]
[1725503662662,1.52006219,57988.0,57987.0,0.00163]
[1725503662925,1.54083269,57988.0,57987.0,0.00163]
[1725503663342,1.53783269,57988.0,57987.0,0.00163]
[1725503663650,1.54083269,57988.0,57987.0,0.00163]
[1725503668551,0.75138619,57988.0,57987.0,0.00163]
[1725503668979,0.75138619,57988.0,57987.0,0.02114457]
[1725503669133,0.75138619,57988.0,57987.0,0.00163]
[1725503669330,0.75138619,57988.0,57987.0,0.02114457]
[1725503669559,0.85633698,57988.0,57987.0,0.02114457]
[1725503669785,0.85233698,57988.0,57987.0,0.02114457]
[1725503669981,0.87833698,57988.0,57987.0,0.02114457]
[1725503670245,0.85129329,57988.0,57987.0,0.02114457]
[1725503671230,0.85029329,57988.0,57987.0,0.02114457]
[1725503671603,0.85129329,57988.0,57987.0,0.02114457]
[1725503672612,0.4789135,57988.0,57987.0,0.02114457]
[1725503673847,0.58686429,57988.0,57987.0,0.02114457]
[1725503674043,0.85129329,57988.0,57987.0,0.02114457]
[1725503674603,0.73057929,57988.0,57987.0,0.02114457]
[1725503674778,0.60986429,57988.0,57987.0,0.02114457]
[1725503675689,0.85129329,57988.0,57987.0,0.02114457]
[1725503677438,0.60986429,57988.0,57987.0,0.25824457]
[1725503677644,0.60986429,57988.0,57987.0,0.28439523]
[1725503681563,0.5019135,57988.0,57987.0,0.28439523]
[1725503685833,0.4789135,57988.0,57987.0,0.28439523]
[1725503687574,0.120714,57989.0,57987.0,0.28439523]
[1725503687773,0.000815,57992.0,57987.0,0.28439523]
[1725503687774,0.120714,57988.0,57987.0,0.28439523]
[1725503689832,0.362143,57988.0,57987.0,0.28439523]
[1725503690037,0.462143,57988.0,57987.0,0.28439523]
[1725503690450,0.462143,57988.0,57987.0,0.28939523]
[1725503691063,0.463143,57988.0,57987.0,0.29539523]
[1725503693810,0.704572,57988.0,57987.0,0.29539523]
[1725503698766,0.704572,57988.0,57987.0,0.03214457]
[1725503698989,0.969001,57988.0,57987.0,0.03214457]
[1725503699188,0.969001,57988.0,57987.0,0.01263]
[1725503699426,1.54204658,57988.0,57987.0,0.01263]
[1725503699637,1.54404658,57988.0,57987.0,0.01263]
[1725503699844,1.54404658,57988.0,57987.0,0.00163]
[1725503699845,1.57009178,57988.0,57987.0,0.00163]
[1725503700236,1.58509178,57988.0,57987.0,0.00163]
[1725503700484,1.82652078,57988.0,57987.0,0.00163]
[1725503700715,1.82452078,57988.0,57987.0,0.00163]
[1725503700922,1.84552078,57988.0,57987.0,0.00363]
[1725503701128,1.84252078,57988.0,57987.0,0.00363]
[1725503701296,1.84552078,57988.0,57987.0,0.00363]
[1725503702722,1.85552078,57988.0,57987.0,0.00163]
[1725503702927,1.85552078,57988.0,57975.0,0.00163]
[1725503702928,0.233037,57977.0,57975.0,0.00163]
[1725503703135,0.233037,57977.0,57972.0,0.00163]
[1725503703136,0.012,57973.0,57972.0,0.00163]
[1725503703406,1.53677637,57973.0,57972.0,0.00163]
[1725503703622,0.362362,57953.0,57952.0,0.1271]
[1725503703844,0.71188779,57953.0,57952.0,0.15069]
[1725503704048,0.626937,57953.0,57952.0,0.15069]
[1725503705357,0.385362,57953.0,57952.0,0.15069]
[1725503705761,0.385362,57953.0,57952.0,0.25439]
[1725503706993,0.120787,57953.0,57952.0,0.25439]
[1725503707195,0.241555,57958.0,57952.0,0.25439]
[1725503707196,0.12078,57957.0,57952.0,0.25439]
[1725503707415,0.120781,57956.0,57953.0,0.1641634]
[1725503707589,0.120781,57956.0,57954.0,0.1037]
[1725503708217,0.120783,57955.0,57954.0,0.1037]
[1725503709503,0.120791,57951.0,57950.0,0.2339]
[1725503709724,0.023,57955.0,57950.0,0.14979]
[1725503709725,0.27017673,57952.0,57950.0,0.14979]
[1725503709940,0.120791,57951.0,57950.0,0.14979]
[1725503710148,0.362374,57951.0,57950.0,0.14979]
[1725503711151,0.362374,57951.0,57950.0,0.16947596]
[1725503712461,0.023,57955.0,57950.0,0.27507596]
[1725503712462,0.120787,57954.0,57950.0,0.27507596]
[1725503712698,0.241566,57955.0,57951.0,0.02785271]
[1725503712699,0.120788,57953.0,57951.0,0.02785271]
[1725503712897,0.120788,57953.0,57951.0,0.04753404]
[1725503714646,0.001,57954.0,57951.0,0.04753404]
[1725503714647,0.120789,57952.0,57951.0,0.04753404]
[1725503714915,0.121786,57954.0,57951.0,0.04753404]
[1725503715148,0.120787,57953.0,57952.0,0.0400331]
[1725503715630,0.120785,57955.0,57952.0,0.05970979]
[1725503715898,0.01319742,57961.0,57955.0,0.1083]
[1725503716158,0.120779,57957.0,57955.0,0.1083]
[1725503716401,0.120779,57957.0,57956.0,0.01965816]
[1725503716661,0.120779,57957.0,57956.0,0.05832278]
[1725503716662,0.1,57957.0,57956.0,0.05832278]
[1725503716922,0.1,57957.0,57956.0,0.19622278]
[1725503717155,0.120769,57962.0,57957.0,0.2462]
[1725503717380,0.008,57961.0,57958.0,0.05440848]